bitfinex/quotes_BTCUSD_20250624
["timestamp","ask_amount","ask_price","bid_price","bid_amount"]
[1750764252132,0.97625368,105150.0,105140.0,0.47044542]
[1750764252516,0.98576372,105150.0,105140.0,0.47044542]
[1750764252917,0.97625368,105150.0,105140.0,0.47044542]
[1750764253131,0.98576372,105150.0,105140.0,0.47044542]
[1750764253349,0.68242588,105150.0,105140.0,0.47044542]
[1750764253903,0.68242597,105150.0,105140.0,0.47044542]
[1750764254095,0.69193601,105150.0,105140.0,0.47044542]
[1750764254296,0.66240634,105150.0,105140.0,0.47044542]
[1750764254543,0.67191602,105150.0,105140.0,0.47144542]
[1750764254875,0.68142588,105150.0,105140.0,0.47144542]
[1750764255001,0.69093592,105150.0,105140.0,0.47344542]
[1750764255398,0.9847639,105150.0,105140.0,0.47344542]
[1750764255814,1.17496836,105150.0,105140.0,0.47344542]
[1750764256018,1.17496909,105150.0,105140.0,0.47344542]
[1750764256916,0.98476463,105150.0,105140.0,0.47344542]
[1750764257117,0.67191639,105150.0,105140.0,0.47344542]
[1750764257330,0.68142643,105150.0,105140.0,0.47344542]
[1750764257548,0.68142634,105150.0,105140.0,0.47344542]
[1750764258191,0.69093638,105150.0,105140.0,0.47344542]
[1750764259431,1.16545923,105150.0,105140.0,0.46393493]
[1750764259632,1.15594937,105150.0,105140.0,0.46393493]
[1750764260352,1.15594937,105150.0,105140.0,0.47344551]
[1750764261353,1.15594937,105150.0,105140.0,0.45442426]
[1750764261540,1.14643942,105150.0,105140.0,0.29058426]
[1750764261776,1.12741916,105150.0,105140.0,0.24402]
[1750764261987,1.12741916,105150.0,105140.0,0.44375359]
[1750764262187,1.12741916,105150.0,105140.0,0.45326453]
[1750764263244,1.12741916,105150.0,105140.0,0.46277538]
[1750764263651,1.1369292,105150.0,105140.0,0.48179663]
[1750764264254,1.1369292,105150.0,105140.0,0.46277538]
[1750764264459,1.1369292,105150.0,105140.0,0.47228614]
[1750764264891,1.1369292,105150.0,105140.0,0.46277538]
[1750764265771,1.1369292,105150.0,105140.0,0.45326453]
[1750764265972,0.66240634,105150.0,105140.0,0.56778782]
[1750764266181,0.38759826,105150.0,105140.0,0.57729831]
[1750764266357,0.68142597,105150.0,105140.0,0.57729831]
[1750764266558,0.67191602,105150.0,105140.0,0.57729831]
[1750764266758,0.68142588,105150.0,105140.0,0.57729831]
[1750764266968,0.69093592,105150.0,105140.0,0.57729831]
[1750764267568,0.69093583,105150.0,105140.0,0.57729831]
[1750764268199,0.67191602,105150.0,105140.0,0.57729831]
[1750764268407,0.66240653,105150.0,105140.0,0.57729831]
[1750764268774,0.67191593,105150.0,105140.0,0.57729831]
[1750764269228,0.69093565,105150.0,105140.0,0.57729831]
[1750764269459,0.6814257,105150.0,105140.0,0.57729831]
[1750764269892,0.69093574,105150.0,105140.0,0.57729831]
[1750764270107,0.67191593,105150.0,105140.0,0.57729831]
[1750764270819,0.66240625,105150.0,105140.0,0.57729831]
[1750764271040,0.67191584,105150.0,105140.0,0.57729831]
[1750764271284,0.68142561,105150.0,105140.0,0.57729831]
[1750764271500,0.67191584,105150.0,105140.0,0.57729831]
[1750764271922,0.65289685,105150.0,105140.0,0.57729831]
[1750764272124,0.028579,105150.0,105140.0,0.72729831]
[1750764272647,0.31289685,105150.0,105140.0,0.72729831]
[1750764279535,0.028579,105150.0,105140.0,0.72729831]
[1750764279765,0.32240634,105150.0,105140.0,0.72729831]
[1750764280198,0.028579,105150.0,105140.0,0.72729831]
[1750764280418,0.32240644,105150.0,105140.0,0.72729831]
[1750764280861,0.32240625,105150.0,105140.0,0.72729831]
[1750764281291,0.31289685,105150.0,105140.0,0.89183916]
[1750764281748,0.028579,105150.0,105140.0,0.89183916]
[1750764281984,0.30533368,105170.0,105160.0,0.5687135]
[1750764282215,0.02101574,105170.0,105160.0,0.77284218]
[1750764282438,0.64533368,105170.0,105160.0,0.77284218]
[1750764282667,0.67390468,105170.0,105160.0,0.77284218]
[1750764282882,0.6739045,105170.0,105160.0,0.77284218]
[1750764283119,0.68341255,105170.0,105160.0,0.77284218]
[1750764283345,0.68641264,105170.0,105160.0,0.77284218]
[1750764283545,0.68441255,105170.0,105160.0,0.77284218]
[1750764283922,0.66539663,105170.0,105160.0,0.77384218]
[1750764284356,0.67490468,105170.0,105160.0,0.77384218]
[1750764284572,0.66539663,105170.0,105160.0,0.77384218]
[1750764284774,0.67490459,105170.0,105160.0,0.77384218]
[1750764285385,0.66439663,105170.0,105160.0,0.77384218]
[1750764285588,0.38007878,105170.0,105160.0,0.77384218]
[1750764285814,0.67390459,105170.0,105160.0,0.77384218]
[1750764286023,0.66439663,105170.0,105160.0,0.77384218]
[1750764286231,0.67390459,105170.0,105160.0,0.77384218]
[1750764287092,0.66439663,105170.0,105160.0,0.77384218]
[1750764288226,0.67390459,105170.0,105160.0,0.77384218]
[1750764288443,0.66439663,105170.0,105160.0,0.77384218]
[1750764288853,0.67390459,105170.0,105160.0,0.77384218]
[1750764289063,0.66439663,105170.0,105160.0,0.77384218]
[1750764289528,0.67390459,105170.0,105160.0,0.77384218]
[1750764289759,0.66439663,105170.0,105160.0,0.77384218]
[1750764290398,0.67390459,105170.0,105160.0,0.77384218]
[1750764290631,0.66439663,105170.0,105160.0,0.77384218]
[1750764291129,0.67390468,105170.0,105160.0,0.77384218]
[1750764291585,0.68341291,105170.0,105160.0,0.77384218]
[1750764291794,0.67390468,105170.0,105160.0,0.77384218]
[1750764294115,0.68341291,105170.0,105160.0,0.77384218]
[1750764296019,0.69292123,105170.0,105160.0,0.77384218]
[1750764296418,0.88308952,105170.0,105160.0,0.77384218]
[1750764296771,0.68341291,105170.0,105160.0,0.77384218]
[1750764298241,0.69292123,105170.0,105160.0,0.77384218]
[1750764299122,0.88309015,105170.0,105160.0,0.57372482]
[1750764299325,0.8735821,105170.0,105160.0,0.57372482]
[1750764299522,0.8735821,105170.0,105160.0,0.58323386]
[1750764299749,0.8735821,105170.0,105160.0,0.59274281]
[1750764299947,0.8735821,105170.0,105160.0,0.58323386]
[1750764300129,0.8735821,105170.0,105160.0,0.57372482]
[1750764300332,0.86407387,105170.0,105160.0,0.56421569]
[1750764300527,0.85456555,105170.0,105160.0,0.56421569]
[1750764301249,0.85456555,105170.0,105160.0,0.57372491]
[1750764301919,0.87605714,105170.0,105160.0,0.20936]
[1750764302452,0.87605714,105170.0,105160.0,0.20932]
[1750764306188,0.86085714,105170.0,105160.0,0.20932]
[1750764308749,0.84505714,105170.0,105160.0,0.20932]
[1750764309174,0.84505714,105170.0,105160.0,0.24072]
[1750764311727,0.84505714,105170.0,105160.0,0.22552]
[1750764311942,0.84505714,105170.0,105160.0,0.20932]
[1750764312560,0.84505714,105170.0,105160.0,0.24172]
[1750764314759,0.56073929,105170.0,105160.0,0.24172]
[1750764314958,0.84505714,105170.0,105160.0,0.24172]
[1750764317608,0.85456537,105170.0,105160.0,0.43190638]
[1750764317786,0.85456537,105170.0,105160.0,0.44141569]
[1750764317986,0.84505714,105170.0,105160.0,0.24172]
[1750764318675,0.84505714,105170.0,105160.0,0.44141569]
[1750764319270,0.84505714,105170.0,105160.0,0.45092491]
[1750764319848,0.84505714,105170.0,105160.0,0.43190638]
[1750764320115,0.84505714,105170.0,105160.0,0.45092473]
[1750764321498,0.84505714,105170.0,105160.0,0.43190638]
[1750764322264,0.84505714,105170.0,105160.0,0.24172]
[1750764323879,0.84505714,105170.0,105160.0,0.43190638]
[1750764324114,0.84505714,105170.0,105160.0,0.45092491]
[1750764325163,0.84505714,105170.0,105160.0,0.46043404]
[1750764326871,0.84505714,105170.0,105160.0,0.5559359]
[1750764327049,0.87358192,105170.0,105160.0,0.57495353]
[1750764327667,0.38007878,105170.0,105160.0,0.77495353]
[1750764327874,0.67390468,105170.0,105160.0,0.7749529]
[1750764328258,0.68341291,105170.0,105160.0,0.7749529]
[1750764328428,0.67390468,105170.0,105160.0,0.7749529]
[1750764328850,0.38007869,105170.0,105160.0,0.7749529]
[1750764329067,0.030571,105170.0,105160.0,0.93949375]
[1750764332429,0.31488885,105170.0,105160.0,0.73117375]
[1750764332683,0.31488885,105170.0,105160.0,0.93901375]
[1750764332862,0.030571,105170.0,105160.0,0.93901375]
[1750764333068,0.31488885,105170.0,105160.0,0.94101375]
[1750764334460,0.030571,105170.0,105160.0,0.94101375]
[1750764338380,0.030571,105170.0,105160.0,0.94001375]
[1750764338821,0.030571,105170.0,105160.0,0.94201375]
[1750764339619,0.002,105170.0,105160.0,0.94201375]
[1750764340855,0.002,105170.0,105160.0,1.2263316]
[1750764341466,0.002,105170.0,105160.0,0.94201375]
[1750764343917,0.002,105170.0,105160.0,1.19201375]
[1750764344134,0.002,105170.0,105160.0,1.4763316]
[1750764344959,0.002,105170.0,105160.0,1.19201375]
[1750764345223,0.002,105170.0,105160.0,1.4763316]
[1750764345375,0.002,105170.0,105160.0,1.19201375]
[1750764347475,0.002,105170.0,105160.0,1.4763316]
[1750764348595,0.002,105170.0,105160.0,1.19201375]
[1750764349380,0.002,105170.0,105160.0,1.4763316]
[1750764351773,0.002,105170.0,105160.0,1.19201375]
[1750764363700,0.002,105170.0,105160.0,1.29211375]
[1750764363873,0.002,105170.0,105160.0,1.19201375]
[1750764364264,0.002,105170.0,105160.0,1.4763316]
[1750764366777,0.002,105170.0,105160.0,1.5263316]
[1750764366998,0.002,105170.0,105160.0,1.6263316]
[1750764367417,0.002,105170.0,105160.0,1.6243316]
[1750764367833,0.002,105170.0,105160.0,1.6283316]
[1750764368262,0.002,105170.0,105160.0,1.6243316]
[1750764368469,0.002,105170.0,105160.0,1.6323316]
[1750764369325,0.002,105170.0,105160.0,1.9703316]
[1750764370621,0.002,105170.0,105160.0,1.9723316]
[1750764371053,0.002,105170.0,105160.0,1.9893716]
[1750764372331,0.002,105170.0,105160.0,1.7815316]
[1750764372547,0.002,105170.0,105160.0,1.49181375]
[1750764372765,0.002,105170.0,105160.0,1.9446116]
[1750764376134,0.002,105170.0,105160.0,1.7375316]
[1750764376339,0.002,105170.0,105160.0,1.9445716]
[1750764380854,0.002,105170.0,105160.0,1.66025375]
[1750764381065,0.002,105170.0,105160.0,1.9445716]
[1750764384041,0.00033499,105170.0,105160.0,1.9445716]
[1750764386743,0.00033499,105170.0,105160.0,1.9945716]
[1750764394013,6.032e-05,105170.0,105160.0,1.9945716]
[1750764396452,6.032e-05,105170.0,105160.0,2.5089916]
[1750764397686,6.032e-05,105170.0,105160.0,3.2089916]
[1750764398232,6.032e-05,105170.0,105160.0,2.69423949]
[1750764398760,0.002,105190.0,105180.0,1.55411249]
[1750764398957,0.002,105190.0,105180.0,2.37970583]
[1750764399141,0.002,105190.0,105180.0,2.47970583]
[1750764400015,0.002,105190.0,105180.0,2.48583701]
[1750764400432,0.002,105190.0,105180.0,2.48883701]
[1750764400642,0.002,105190.0,105180.0,2.48583701]
[1750764400843,0.002,105190.0,105180.0,2.50487701]
[1750764401061,0.002,105190.0,105180.0,2.51187701]
[1750764405105,0.00047099,105190.0,105180.0,2.51187701]
[1750764406790,0.00047099,105190.0,105180.0,1.94390553]
[1750764406999,0.00047099,105190.0,105180.0,2.51187701]
[1750764409158,0.00047099,105190.0,105180.0,2.74011701]
[1750764416713,0.0001,105200.0,105190.0,0.40454085]
[1750764416928,0.0001,105200.0,105190.0,1.24053931]
[1750764417138,0.0021,105210.0,105200.0,1.52317093]
[1750764417345,0.0021,105210.0,105200.0,2.19639853]
[1750764417575,0.0021,105210.0,105200.0,1.91241279]
[1750764417782,0.0021,105210.0,105200.0,2.19639853]
[1750764417995,0.0021,105210.0,105200.0,2.48038427]
[1750764418451,0.0021,105210.0,105200.0,2.19639853]
[1750764419119,0.0021,105210.0,105200.0,2.20020453]
[1750764419542,0.0021,105210.0,105200.0,2.22930155]
[1750764419762,0.0021,105210.0,105200.0,1.94531581]
[1750764419972,0.0021,105210.0,105200.0,2.22930155]
[1750764420859,0.0021,105210.0,105200.0,2.06746155]
[1750764421107,0.0021,105210.0,105200.0,2.55736729]
[1750764421341,6.001e-05,105220.0,105210.0,0.62315013]
[1750764421565,6.001e-05,105220.0,105210.0,1.57942347]
[1750764423471,6.001e-05,105220.0,105210.0,2.32942347]
[1750764424573,0.002,105230.0,105220.0,1.57312937]
[1750764424784,0.002,105230.0,105220.0,2.24497697]
[1750764425000,0.002,105230.0,105220.0,2.94497697]
[1750764425212,0.002,105230.0,105220.0,2.66099123]
[1750764425424,0.002,105230.0,105220.0,2.94497697]
[1750764425834,0.00246037,105230.0,105220.0,2.95430366]
[1750764426044,0.00246037,105230.0,105220.0,2.67031792]
[1750764426255,0.00246037,105230.0,105220.0,2.95430366]
[1750764428190,0.00246037,105230.0,105220.0,2.91782366]
[1750764428415,0.00246037,105230.0,105220.0,1.72795792]
[1750764428624,0.00246037,105230.0,105220.0,2.21786366]
[1750764429680,0.00246037,105230.0,105220.0,1.93387792]
[1750764429883,0.00246037,105230.0,105220.0,2.21786366]
[1750764434178,0.00246037,105230.0,105220.0,2.06786366]
[1750764436059,0.00246037,105230.0,105220.0,2.08690366]
[1750764438473,0.00246037,105230.0,105220.0,2.37850366]
[1750764439652,0.00246037,105230.0,105220.0,2.40980366]
[1750764440552,0.00246037,105230.0,105220.0,2.55980366]
[1750764443007,0.00246037,105230.0,105220.0,2.26820366]
[1750764447921,0.00246037,105230.0,105220.0,1.98421792]
[1750764448138,0.00246037,105230.0,105220.0,2.26820366]
[1750764456487,0.00246037,105230.0,105220.0,2.49632366]
[1750764461325,0.00246037,105230.0,105220.0,2.47728366]
[1750764463368,0.00246037,105230.0,105220.0,2.52728366]
[1750764464536,0.00246037,105230.0,105220.0,3.22728366]
[1750764464882,0.00083921,105230.0,105220.0,3.5112694]
[1750764465295,0.0021,105250.0,105240.0,2.1224593]
[1750764465512,0.00223803,105250.0,105240.0,2.37960116]
[1750764466449,0.00223803,105250.0,105240.0,2.38060116]
[1750764466779,0.00223803,105250.0,105240.0,2.09661542]
[1750764466979,0.00223803,105250.0,105240.0,2.06521542]
[1750764467366,0.00223803,105250.0,105240.0,2.01521542]
[1750764467572,0.03313803,105250.0,105240.0,2.05921542]
[1750764468623,0.01733803,105250.0,105240.0,2.05921542]
[1750764468831,0.00223803,105250.0,105240.0,2.05921542]
[1750764472012,0.00223803,105250.0,105240.0,2.28733542]
[1750764472814,0.00223803,105250.0,105240.0,2.00334968]
[1750764472952,0.00223803,105250.0,105240.0,2.28733542]
[1750764473189,0.00223803,105250.0,105240.0,2.60292116]
[1750764473628,0.00223803,105250.0,105240.0,2.70292116]
[1750764474895,0.00223803,105250.0,105240.0,2.70192116]
[1750764475306,0.00223803,105250.0,105240.0,2.70492116]
[1750764475939,0.00223803,105250.0,105240.0,2.72396116]
[1750764476375,0.00223803,105250.0,105240.0,2.40837542]
[1750764476543,0.00223803,105250.0,105240.0,2.45837542]
[1750764476733,0.00223803,105250.0,105240.0,2.48897542]
[1750764477733,0.00223803,105250.0,105240.0,2.77296116]
[1750764485143,0.03493803,105250.0,105240.0,1.96874968]
[1750764485277,0.03493803,105250.0,105240.0,2.40817542]
[1750764486572,0.31892377,105250.0,105240.0,1.39516883]
[1750764486799,0.03493803,105250.0,105240.0,1.25060883]
[1750764487226,0.03493803,105250.0,105240.0,1.53459457]
[1750764487432,0.01853803,105250.0,105240.0,1.54913542]
[1750764489041,0.01853803,105250.0,105240.0,2.01342116]
[1750764489042,0.00223803,105250.0,105240.0,2.01342116]
[1750764491234,0.00223803,105250.0,105240.0,2.01042116]
[1750764491683,0.00223803,105250.0,105240.0,2.40042116]
[1750764492338,0.00223803,105250.0,105240.0,2.50142116]
[1750764493755,0.00223803,105250.0,105240.0,2.55142116]
[1750764494390,0.00223803,105250.0,105240.0,2.55042116]
[1750764495055,0.00223803,105250.0,105240.0,2.55342116]
[1750764495270,0.00223803,105250.0,105240.0,3.27246116]
[1750764495695,0.00223803,105250.0,105240.0,3.27626516]
[1750764496140,0.00223803,105250.0,105240.0,3.5602509]
[1750764496756,0.00223803,105250.0,105240.0,3.5572509]
[1750764497192,0.00223803,105250.0,105240.0,3.5582509]
[1750764497804,0.00077098,105250.0,105240.0,3.5582509]
[1750764498018,0.0001,105260.0,105250.0,0.97390706]
[1750764498229,0.00018757,105260.0,105250.0,2.5987804]
[1750764500616,0.00018757,105260.0,105250.0,2.5997804]
[1750764501238,0.00018757,105260.0,105250.0,2.6007804]
[1750764501859,0.00018757,105260.0,105250.0,2.19935466]
[1750764502063,0.00018757,105260.0,105250.0,2.66071466]
[1750764502276,0.0759698,105280.0,105270.0,1.30848471]
[1750764502489,0.0759698,105280.0,105270.0,1.32534657]
[1750764502705,0.0759698,105280.0,105270.0,1.23988742]
[1750764502903,0.0913698,105280.0,105270.0,1.23988742]
[1750764503108,0.0913698,105280.0,105270.0,1.06398657]
[1750764503315,0.0913698,105280.0,105270.0,1.26926657]
[1750764503523,0.0913698,105280.0,105270.0,1.28680742]
[1750764503975,0.0913698,105280.0,105270.0,1.28380742]
[1750764504402,0.0154,105280.0,105270.0,1.28380742]
[1750764504616,0.0164,105280.0,105270.0,1.29680742]
[1750764505460,0.0323,105280.0,105270.0,1.29680742]
[1750764506615,0.0343,105280.0,105270.0,1.30280742]
[1750764511415,0.0343,105280.0,105270.0,1.30264742]
[1750764513493,0.0343,105280.0,105270.0,1.58663316]
[1750764513709,0.0343,105280.0,105270.0,1.8706189]
[1750764513710,0.0189,105280.0,105270.0,1.8706189]
[1750764513916,0.003,105280.0,105270.0,1.58663316]
[1750764514980,0.003,105280.0,105270.0,1.60273316]
[1750764515189,0.003,105280.0,105270.0,1.61863316]
[1750764515358,0.003,105280.0,105270.0,1.9026189]
[1750764515731,0.003,105280.0,105270.0,1.61863316]
[1750764517379,0.003,105280.0,105270.0,1.9026189]
[1750764517811,0.003,105280.0,105270.0,1.76863316]
[1750764518051,0.003,105280.0,105270.0,2.0526189]
[1750764520069,0.003,105280.0,105270.0,1.48464742]
[1750764520311,0.003,105280.0,105270.0,2.0526189]
[1750764521954,0.003,105280.0,105270.0,1.76863316]
[1750764523325,0.003,105280.0,105270.0,1.48464742]
[1750764523505,0.003,105280.0,105270.0,1.76863316]
[1750764525338,0.003,105280.0,105270.0,1.76847316]
[1750764526387,0.003,105280.0,105270.0,1.48448742]
[1750764526590,0.003,105280.0,105270.0,1.76847316]
[1750764526911,0.003,105280.0,105270.0,1.73647316]
[1750764527519,0.003,105280.0,105270.0,1.45248742]
[1750764527678,0.003,105280.0,105270.0,1.73647316]
[1750764528498,0.003,105280.0,105270.0,1.45248742]
[1750764528712,0.003,105280.0,105270.0,1.73647316]
[1750764534534,0.003,105280.0,105270.0,1.76857316]
[1750764535506,0.003,105280.0,105270.0,2.0525589]
[1750764538473,0.003,105280.0,105270.0,2.1025589]
[1750764540747,0.003,105280.0,105270.0,2.4425589]
[1750764540948,0.002,105290.0,105280.0,0.06454085]
[1750764541157,0.0001,105300.0,105290.0,1.21568404]
[1750764541411,0.00023824,105300.0,105290.0,2.75815738]
[1750764541627,0.0021,105310.0,105300.0,0.65842245]
[1750764541845,6.001e-05,105320.0,105310.0,1.55484256]
[1750764542061,0.00196001,105330.0,105320.0,0.72386183]
[1750764542274,0.00013999,105330.0,105320.0,1.54825517]
[1750764542490,0.002,105350.0,105340.0,1.18382035]
[1750764542697,0.002461,105350.0,105340.0,2.76985369]
[1750764542910,0.0021,105370.0,105360.0,1.45829806]
[1750764543123,0.00223821,105370.0,105360.0,2.54827225]
[1750764543549,0.00223821,105370.0,105360.0,2.49827225]
[1750764543761,0.00223821,105370.0,105360.0,2.54827225]
[1750764543989,0.00223821,105370.0,105360.0,2.00879977]
[1750764544418,0.00223821,105370.0,105360.0,2.45086631]
[1750764545936,0.00223821,105370.0,105360.0,2.43182631]
[1750764546536,0.01023821,105370.0,105360.0,2.43282631]
[1750764546713,0.01023821,105370.0,105360.0,2.43382631]
[1750764546917,0.01023821,105370.0,105360.0,2.69175977]
[1750764547117,0.01023821,105370.0,105360.0,3.13382631]
[1750764547941,0.01023821,105370.0,105360.0,2.98382631]
[1750764548225,0.01023821,105370.0,105360.0,2.93428731]
[1750764548813,0.01023821,105370.0,105360.0,2.09371992]
[1750764549065,0.01023821,105370.0,105360.0,1.84371992]
[1750764549264,0.04243821,105370.0,105360.0,1.25019992]
[1750764549417,0.04243821,105370.0,105360.0,1.26474077]
[1750764549587,0.04243821,105370.0,105360.0,1.26374077]
[1750764549783,0.04243821,105370.0,105360.0,1.24923992]
[1750764549990,0.05192794,105370.0,105360.0,1.24923992]
[1750764550263,0.05341758,105370.0,105360.0,1.04671992]
[1750764550462,0.04392776,105370.0,105360.0,1.25323992]
[1750764550611,0.05341749,105370.0,105360.0,1.25623992]
[1750764550785,0.05341749,105370.0,105360.0,1.24819992]
[1750764550990,0.0723974,105370.0,105360.0,1.04471992]
[1750764551247,0.0723974,105370.0,105360.0,1.25619992]
[1750764551608,0.08188758,105370.0,105360.0,1.25619992]
[1750764552379,0.05341749,105370.0,105360.0,1.25619992]
[1750764552579,0.06290713,105370.0,105360.0,1.25619992]
[1750764552820,0.0534174,105370.0,105360.0,1.04971992]
[1750764553024,0.69478182,105370.0,105360.0,0.66230893]
[1750764553222,0.26220564,105370.0,105360.0,0.86874938]
[1750764553432,0.252716,105370.0,105360.0,0.86874938]
[1750764553846,0.05341776,105370.0,105360.0,0.88773109]
[1750764554084,0.27169573,105370.0,105360.0,0.88273109]
[1750764554288,0.07239803,105370.0,105360.0,0.89222172]
[1750764554495,0.07539803,105370.0,105360.0,0.89622172]
[1750764554707,0.07539803,105370.0,105360.0,0.90222172]
[1750764554708,0.07639794,105370.0,105360.0,0.90222172]
[1750764555121,0.05741776,105370.0,105360.0,0.90226172]
[1750764555368,0.03843821,105370.0,105360.0,0.90226172]
[1750764555572,0.03843821,105370.0,105360.0,1.20226172]
[1750764555780,0.02243821,105370.0,105360.0,1.20226172]
[1750764556405,0.00623821,105370.0,105360.0,1.20226172]
[1750764558224,0.00623821,105370.0,105360.0,1.21680257]
[1750764561566,0.00623821,105370.0,105360.0,0.99578172]
[1750764561733,0.00623821,105370.0,105360.0,1.20206172]
[1750764562370,0.01572776,105370.0,105360.0,1.20206172]
[1750764563015,0.01572776,105370.0,105360.0,0.88292028]
[1750764563016,0.70817137,105370.0,105360.0,0.88292028]
[1750764563232,0.51836403,105370.0,105360.0,0.90190172]
[1750764563452,0.5278543,105370.0,105360.0,0.90190172]
[1750764563665,0.08578776,105370.0,105360.0,0.90190172]
[1750764563922,0.06680731,105370.0,105360.0,0.90190172]
[1750764564160,0.03833821,105370.0,105360.0,0.90190172]
[1750764564383,0.00623821,105370.0,105360.0,0.90190172]
[1750764564997,0.01572776,105370.0,105360.0,0.90190172]
[1750764565201,0.00623821,105370.0,105360.0,0.90190172]
[1750764568153,0.01507202,105370.0,105360.0,0.90190172]
[1750764568554,0.05646166,105370.0,105360.0,0.90190172]
[1750764569052,0.04697538,105370.0,105360.0,0.90190172]
[1750764569304,0.04880211,105370.0,105360.0,0.90190172]
[1750764570322,0.05829166,105370.0,105360.0,0.90190172]
[1750764570940,0.04945449,105370.0,105360.0,0.90190172]
[1750764571145,0.02223821,105370.0,105360.0,0.90190172]
[1750764571571,0.00623821,105370.0,105360.0,0.90190172]
[1750764572838,0.01572776,105370.0,105360.0,1.05190172]
[1750764573061,0.00623821,105370.0,105360.0,1.05190172]
[1750764574335,0.03475021,105370.0,105360.0,1.05190172]
[1750764574748,0.31789758,105370.0,105360.0,1.05190172]
[1750764575173,0.03475021,105370.0,105360.0,1.05190172]
[1750764577392,0.0151326,105370.0,105360.0,1.05190172]
[1750764578281,0.0151326,105370.0,105360.0,1.31644257]
[1750764578282,0.00623821,105370.0,105360.0,1.31644257]
[1750764578653,0.00623821,105370.0,105360.0,1.59958994]
[1750764578859,0.00623821,105370.0,105360.0,1.70585974]
[1750764579265,0.00623821,105370.0,105360.0,1.34674257]
[1750764579502,0.00623821,105370.0,105360.0,1.62988994]
[1750764579713,0.00623821,105370.0,105360.0,1.91303731]
[1750764579919,0.00623821,105370.0,105360.0,1.72988994]
[1750764580120,0.00623821,105370.0,105360.0,2.01303731]
[1750764580321,0.00623821,105370.0,105360.0,2.06303731]
[1750764580523,0.00623821,105370.0,105360.0,1.77988994]
[1750764580922,0.00623821,105370.0,105360.0,1.77388994]
[1750764581073,0.00523821,105370.0,105360.0,1.77388994]
[1750764581275,0.00623821,105370.0,105360.0,1.78388994]
[1750764581472,0.00323821,105370.0,105360.0,1.77688994]
[1750764581680,0.00323821,105370.0,105360.0,2.06003731]
[1750764581936,0.00323821,105370.0,105360.0,2.06703731]
[1750764582295,0.00323821,105370.0,105360.0,1.94291133]
[1750764582481,0.00323821,105370.0,105360.0,2.28291133]
[1750764582687,0.00323821,105370.0,105360.0,2.33291133]
[1750764584314,0.00323821,105370.0,105360.0,2.82679133]
[1750764584521,0.0001,105380.0,105370.0,1.29648695]
[1750764584741,0.0001,105380.0,105370.0,1.11390005]
[1750764584958,0.0001,105380.0,105370.0,1.50606881]
[1750764585165,0.0001,105380.0,105370.0,1.55606881]
[1750764585373,0.0001,105380.0,105370.0,1.81390005]
[1750764585572,0.0001,105380.0,105370.0,2.25606881]
[1750764585985,0.0011,105380.0,105370.0,2.26506881]
[1750764586203,0.1001,105390.0,105380.0,1.11329748]
[1750764586415,0.1001,105390.0,105380.0,1.47299934]
[1750764586620,0.1001,105390.0,105380.0,1.9151681]
[1750764587239,0.1001,105390.0,105380.0,2.6151681]
[1750764587856,0.1001,105390.0,105380.0,1.9151681]
[1750764589071,0.1001,105390.0,105380.0,1.7509681]
[1750764589271,0.1001,105390.0,105380.0,1.9603281]
[1750764589491,0.1001,105390.0,105380.0,1.9613281]
[1750764590949,0.1001,105390.0,105380.0,2.6613281]
[1750764591364,0.1001,105390.0,105380.0,2.6898231]
[1750764591789,0.09061061,105390.0,105380.0,3.0298231]
[1750764592214,0.08112122,105390.0,105380.0,3.1482631]
[1750764592425,0.0001,105400.0,105380.0,3.1482631]
[1750764592426,0.0001,105400.0,105390.0,0.51427677]
[1750764592649,0.0001,105400.0,105390.0,2.01650739]
[1750764593525,0.0001,105400.0,105390.0,1.97433863]
[1750764593737,0.0001,105400.0,105390.0,2.41650739]
[1750764595200,0.0061,105400.0,105390.0,1.97533863]
[1750764595404,0.0061,105400.0,105390.0,2.41750739]
[1750764595605,0.0071,105400.0,105390.0,2.41850739]
[1750764595815,0.0001,105420.0,105410.0,1.37273536]
[1750764596026,0.00023813,105420.0,105410.0,2.49940598]
[1750764596646,0.00023813,105420.0,105410.0,2.57821895]
[1750764596850,0.00023813,105420.0,105410.0,2.58521895]
[1750764597367,0.00023813,105420.0,105410.0,2.59484258]
[1750764598082,0.00023813,105420.0,105410.0,3.29484258]
[1750764599002,0.0001,105440.0,105430.0,1.01815312]
[1750764599203,0.0001,105440.0,105430.0,1.86694459]
[1750764600114,0.0001,105440.0,105430.0,1.62036459]
[1750764600350,0.0001,105440.0,105430.0,0.62819583]
[1750764600560,0.0165,105440.0,105430.0,1.40175583]
[1750764600792,0.0325,105440.0,105430.0,1.38721498]
[1750764600996,0.0325,105440.0,105430.0,1.39521498]
[1750764601214,0.0325,105440.0,105430.0,0.93465498]
[1750764601425,0.0325,105440.0,105430.0,1.14525498]
[1750764601643,0.0325,105440.0,105430.0,1.15979583]
[1750764602317,0.0325,105440.0,105430.0,0.83465498]
[1750764602534,0.0325,105440.0,105430.0,1.04517498]
[1750764602978,0.04198325,105440.0,105430.0,1.04517498]
[1750764603206,0.0325,105440.0,105430.0,1.02417498]
[1750764603439,0.0325,105440.0,105430.0,1.03017498]
[1750764603675,0.69280092,105440.0,105430.0,1.01112605]
[1750764603911,1.02331758,105440.0,105430.0,1.00964118]
[1750764604147,1.05181358,105440.0,105430.0,0.81994186]
[1750764604374,1.05181358,105440.0,105430.0,1.02261092]
[1750764604592,1.05181358,105440.0,105430.0,0.82342682]
[1750764604835,1.04232997,105440.0,105430.0,0.81094186]
[1750764605048,1.04232997,105440.0,105430.0,0.61094186]
[1750764605253,1.04232997,105440.0,105430.0,0.61090186]
[1750764605662,1.04232997,105440.0,105430.0,0.5154]
[1750764606692,0.60016121,105440.0,105430.0,0.5154]
[1750764606910,0.60016121,105440.0,105430.0,0.72406906]
[1750764607114,0.60016121,105440.0,105430.0,0.51966915]
[1750764607318,0.41047961,105440.0,105430.0,0.8453003]
[1750764607523,0.62861195,105440.0,105430.0,1.05478409]
[1750764607728,0.09893053,105440.0,105430.0,1.05478409]
[1750764608341,0.1084145,105440.0,105430.0,1.05478409]
[1750764608776,0.09893053,105440.0,105430.0,1.05478409]
[1750764608978,0.07047934,105440.0,105430.0,1.05478409]
[1750764609182,0.07047934,105440.0,105430.0,0.90478409]
[1750764609386,0.07047925,105440.0,105430.0,0.90478409]
[1750764609596,0.07996277,105440.0,105430.0,0.90478409]
[1750764610167,0.07996268,105440.0,105430.0,0.90478409]
[1750764610408,0.07047925,105440.0,105430.0,0.90478409]
[1750764610613,0.060996,105440.0,105430.0,0.90478409]
[1750764611464,0.07047925,105440.0,105430.0,0.90478409]
[1750764611646,0.060996,105440.0,105430.0,0.90478409]
[1750764611885,0.060996,105440.0,105430.0,1.20478409]
[1750764612507,0.0325,105440.0,105430.0,1.20478409]
[1750764612711,0.0001,105440.0,105430.0,1.20478409]